[Event "*** Titled Tuesday Blitz"]
[Site "Chess.com"]
[Date "2020.04.07"]
[Round "5"]
[White "Incognito_Knight"]
[Black "arminmusovic"]
[Result "1-0"]
[WhiteElo "2712"]
[BlackElo "2517"]
[TimeControl "180+1"]
[EndTime "13:56:49 PDT"]
[Termination "Incognito_Knight won by checkmate"]

1. d4 {[%clk 0:03:00.6]} 1... d5 {[%clk 0:02:34.4]} 2. c4 {[%clk 0:03:00.6]}
2... c5 {[%clk 0:02:33.9]} 3. dxc5 {[%clk 0:02:56]} 3... e6 {[%clk 0:02:33.8]}
4. cxd5 {[%clk 0:02:52.7]} 4... Bxc5 {[%clk 0:02:33.8]} 5. Nc3 {[%clk
0:02:46.9]} 5... Nf6 {[%clk 0:02:33.6]} 6. Nf3 {[%clk 0:02:27.9]} 6... exd5
{[%clk 0:02:32.8]} 7. e3 {[%clk 0:02:26.3]} 7... O-O {[%clk 0:02:30.2]} 8. Be2
{[%clk 0:02:24.1]} 8... Nc6 {[%clk 0:02:30.7]} 9. O-O {[%clk 0:02:22.2]} 9...
Re8 {[%clk 0:02:30.3]} 10. Nb5 {[%clk 0:02:14.9]} 10... a6 {[%clk 0:02:28.6]}
11. Nbd4 {[%clk 0:02:14.3]} 11... Bd6 {[%clk 0:02:28.1]} 12. b3 {[%clk
0:02:09.8]} 12... Ne4 {[%clk 0:02:23.6]} 13. Bb2 {[%clk 0:02:09]} 13... Ne5
{[%clk 0:02:18]} 14. Rc1 {[%clk 0:02:02.2]} 14... Ng4 {[%clk 0:02:09.6]} 15. h3
{[%clk 0:01:58]} 15... Nexf2 {[%clk 0:01:41.5]} 16. Rxf2 {[%clk 0:01:56.2]}
16... Nxe3 {[%clk 0:01:41.9]} 17. Qd3 {[%clk 0:01:48.8]} 17... Bg3 {[%clk
0:01:39.5]} 18. Qc3 {[%clk 0:01:35.6]} 18... Qf6 {[%clk 0:01:24.9]} 19. Bd3
{[%clk 0:01:14.2]} 19... Bxf2+ {[%clk 0:01:20]} 20. Kxf2 {[%clk 0:01:15.1]}
20... Bd7 {[%clk 0:00:29.3]} 21. Re1 {[%clk 0:01:13.6]} 21... Nxg2 {[%clk
0:00:22.2]} 22. Kxg2 {[%clk 0:01:07.3]} 22... Qh6 {[%clk 0:00:18.5]} 23. Nf5
{[%clk 0:00:37.3]} 23... Qg6+ {[%clk 0:00:12.6]} 24. Ng3 {[%clk 0:00:36.9]}
24... Qh6 {[%clk 0:00:12.8]} 25. h4 {[%clk 0:00:32.3]} 25... Rxe1 {[%clk
0:00:12.6]} 26. Qxe1 {[%clk 0:00:31.6]} 26... Re8 {[%clk 0:00:12.6]} 27. Qc3
{[%clk 0:00:28.4]} 27... f6 {[%clk 0:00:13]} 28. Qd4 {[%clk 0:00:24.8]} 28...
Be6 {[%clk 0:00:12.3]} 29. Bf5 {[%clk 0:00:11.8]} 29... Bf7 {[%clk 0:00:09.4]}
30. Bc3 {[%clk 0:00:09.2]} 30... Rc8 {[%clk 0:00:08.4]} 31. Bd2 {[%clk
0:00:09.4]} 31... g5 {[%clk 0:00:06.4]} 32. hxg5 {[%clk 0:00:09.3]} 32... fxg5
{[%clk 0:00:04.9]} 33. Nxg5 {[%clk 0:00:07.7]} 33... Rf8 {[%clk 0:00:02.4]} 34.
Bxh7+ {[%clk 0:00:07.5]} 34... Qxh7 {[%clk 0:00:01.5]} 35. Nxh7 {[%clk
0:00:08.4]} 35... Kxh7 {[%clk 0:00:02.4]} 36. Qh4+ {[%clk 0:00:08.3]} 36... Kg8
{[%clk 0:00:02.5]} 37. Qg5+ {[%clk 0:00:08.4]} 37... Kh7 {[%clk 0:00:02.9]} 38.
Qh6+ {[%clk 0:00:08.6]} 38... Kg8 {[%clk 0:00:03.4]} 39. Nf5 {[%clk 0:00:09.1]}
39... Bg6 {[%clk 0:00:04]} 40. Qg7# {[%clk 0:00:09.1]} 1-0

[Event "*** Titled Tuesday Blitz"]
[Site "Chess.com"]
[Date "2020.04.07"]
[Round "5"]
[White "Chopper1905"]
[Black "Azerichess"]
[Result "0-1"]
[WhiteElo "2854"]
[BlackElo "3014"]
[TimeControl "180+1"]
[EndTime "13:56:50 PDT"]
[Termination "Azerichess won on time"]

1. d4 {[%clk 0:03:00.9]} 1... Nf6 {[%clk 0:02:58.2]} 2. c4 {[%clk 0:03:01]} 2...
g6 {[%clk 0:02:57.1]} 3. Nc3 {[%clk 0:03:00.8]} 3... d5 {[%clk 0:02:57.7]} 4.
cxd5 {[%clk 0:02:53]} 4... Nxd5 {[%clk 0:02:58.2]} 5. e4 {[%clk 0:02:53.7]} 5...
Nxc3 {[%clk 0:02:58.6]} 6. bxc3 {[%clk 0:02:54.6]} 6... Bg7 {[%clk 0:02:59.2]}
7. Nf3 {[%clk 0:02:55]} 7... c5 {[%clk 0:02:59.7]} 8. Be3 {[%clk 0:02:55.2]}
8... O-O {[%clk 0:02:56.6]} 9. Be2 {[%clk 0:02:53.1]} 9... cxd4 {[%clk 0:02:54]}
10. cxd4 {[%clk 0:02:52.9]} 10... Qa5+ {[%clk 0:02:54.2]} 11. Bd2 {[%clk
0:02:35.2]} 11... Qa3 {[%clk 0:02:52.5]} 12. Rc1 {[%clk 0:02:29.2]} 12... Bg4
{[%clk 0:02:44.5]} 13. d5 {[%clk 0:02:22.6]} 13... Qxa2 {[%clk 0:02:32.8]} 14.
O-O {[%clk 0:02:18.9]} 14... Nd7 {[%clk 0:02:32.7]} 15. Rc7 {[%clk 0:01:50.7]}
15... Rfc8 {[%clk 0:02:19.5]} 16. Rxb7 {[%clk 0:01:47.8]} 16... Nc5 {[%clk
0:02:13.5]} 17. Rb4 {[%clk 0:01:13.6]} 17... a5 {[%clk 0:02:11.1]} 18. Rc4
{[%clk 0:01:08.6]} 18... Bxf3 {[%clk 0:01:48.6]} 19. gxf3 {[%clk 0:01:06.4]}
19... Nb3 {[%clk 0:01:48.7]} 20. Bg5 {[%clk 0:01:05.4]} 20... Nd4 {[%clk
0:01:39.9]} 21. Rxc8+ {[%clk 0:00:39.5]} 21... Rxc8 {[%clk 0:01:38.7]} 22. Bd3
{[%clk 0:00:40.4]} 22... Kf8 {[%clk 0:01:13.3]} 23. Kg2 {[%clk 0:00:40.2]} 23...
a4 {[%clk 0:01:09.2]} 24. Qb1 {[%clk 0:00:36]} 24... Qxb1 {[%clk 0:01:08.8]} 25.
Rxb1 {[%clk 0:00:36.9]} 25... Nb3 {[%clk 0:01:06.5]} 26. Bb5 {[%clk 0:00:33.6]}
26... a3 {[%clk 0:01:03.3]} 27. Rxb3 {[%clk 0:00:26.6]} 27... a2 {[%clk
0:01:02.1]} 28. Ra3 {[%clk 0:00:21.1]} 28... a1=Q {[%clk 0:01:02.4]} 29. Rxa1
{[%clk 0:00:21.5]} 29... Bxa1 {[%clk 0:01:03]} 30. Bc6 {[%clk 0:00:21.2]} 30...
Bd4 {[%clk 0:00:58.8]} 31. Bh6+ {[%clk 0:00:20.6]} 31... Kg8 {[%clk 0:00:56.4]}
32. Bg5 {[%clk 0:00:21.1]} 32... f6 {[%clk 0:00:54.7]} 33. Be3 {[%clk
0:00:14.8]} 33... Bxe3 {[%clk 0:00:53.3]} 34. fxe3 {[%clk 0:00:15.7]} 34... e5
{[%clk 0:00:47.9]} 35. h4 {[%clk 0:00:08.7]} 35... Kf8 {[%clk 0:00:46.8]} 36.
Kg3 {[%clk 0:00:08.6]} 36... Ke7 {[%clk 0:00:45.7]} 37. f4 {[%clk 0:00:09.1]}
37... Kd6 {[%clk 0:00:43.6]} 38. Kg4 {[%clk 0:00:08.2]} 38... Rb8 {[%clk
0:00:43.2]} 39. h5 {[%clk 0:00:08.5]} 39... gxh5+ {[%clk 0:00:39]} 40. Kxh5
{[%clk 0:00:08.7]} 40... Rb3 {[%clk 0:00:37.9]} 41. fxe5+ {[%clk 0:00:05.2]}
41... Kxe5 {[%clk 0:00:35.6]} 42. Kh6 {[%clk 0:00:04.8]} 42... Rxe3 {[%clk
0:00:35.2]} 43. Kxh7 {[%clk 0:00:05.2]} 43... Rxe4 {[%clk 0:00:33.3]} 44. Kg6
{[%clk 0:00:05.5]} 44... f5 {[%clk 0:00:32.7]} 45. Kf7 {[%clk 0:00:03.3]} 45...
Rd4 {[%clk 0:00:30.3]} 0-1

[Event "*** Titled Tuesday Blitz"]
[Site "Chess.com"]
[Date "2020.04.07"]
[Round "5"]
[White "Saloni1299"]
[Black "Firegrizzly"]
[Result "0-1"]
[WhiteElo "2186"]
[BlackElo "2608"]
[TimeControl "180+1"]
[EndTime "13:56:50 PDT"]
[Termination "Firegrizzly won by resignation"]

1. e4 {[%clk 0:03:00.9]} 1... c5 {[%clk 0:02:57.7]} 2. Nf3 {[%clk 0:03:01]} 2...
d6 {[%clk 0:02:56.7]} 3. d4 {[%clk 0:03:01.2]} 3... cxd4 {[%clk 0:02:56.2]} 4.
Nxd4 {[%clk 0:03:01.2]} 4... Nf6 {[%clk 0:02:56.1]} 5. Nc3 {[%clk 0:03:01.5]}
5... Bd7 {[%clk 0:02:56.2]} 6. f3 {[%clk 0:03:00.2]} 6... e5 {[%clk 0:02:54.1]}
7. Nb3 {[%clk 0:02:59.4]} 7... Bc6 {[%clk 0:02:50.3]} 8. Be3 {[%clk 0:02:57.5]}
8... Nbd7 {[%clk 0:02:46.6]} 9. Qd2 {[%clk 0:02:57.4]} 9... Be7 {[%clk 0:02:45]}
10. g4 {[%clk 0:02:56.4]} 10... O-O {[%clk 0:02:43.7]} 11. O-O-O {[%clk
0:02:49.2]} 11... a6 {[%clk 0:02:32.2]} 12. g5 {[%clk 0:02:42.3]} 12... Nh5
{[%clk 0:02:21.2]} 13. Rg1 {[%clk 0:02:41.1]} 13... b5 {[%clk 0:02:07.6]} 14.
Bh3 {[%clk 0:02:20.2]} 14... b4 {[%clk 0:01:50.2]} 15. Ne2 {[%clk 0:02:18.3]}
15... a5 {[%clk 0:01:48.9]} 16. Bg4 {[%clk 0:02:13.5]} 16... a4 {[%clk
0:01:44.4]} 17. Na1 {[%clk 0:02:14]} 17... b3 {[%clk 0:01:42.4]} 18. Bxh5 {[%clk
0:02:12.4]} 18... bxa2 {[%clk 0:01:37.7]} 19. Nc3 {[%clk 0:02:11]} 19... Rb8
{[%clk 0:01:36.4]} 20. Nxa2 {[%clk 0:02:05.7]} 20... Nb6 {[%clk 0:01:36.2]} 21.
Qc3 {[%clk 0:01:49.1]} 21... Bd7 {[%clk 0:01:31.6]} 22. Nb4 {[%clk 0:01:44]}
22... Rc8 {[%clk 0:01:30]} 23. Bxb6 {[%clk 0:01:38.2]} 23... Qxb6 {[%clk
0:01:28.3]} 24. Nd5 {[%clk 0:01:37.7]} 24... Qd8 {[%clk 0:01:24.6]} 25. Nxe7+
{[%clk 0:01:35.4]} 25... Qxe7 {[%clk 0:01:23.9]} 26. Qa3 {[%clk 0:01:33.7]}
26... Rc6 {[%clk 0:01:20.1]} 27. c3 {[%clk 0:01:32.5]} 27... Be6 {[%clk
0:01:16.3]} 28. Nc2 {[%clk 0:01:24.6]} 28... Bb3 {[%clk 0:01:15.1]} 29. Nb4
{[%clk 0:01:18.6]} 29... Rb6 {[%clk 0:01:08.6]} 30. Nd5 {[%clk 0:01:14.5]} 30...
Bxd5 {[%clk 0:01:07.8]} 31. Rxd5 {[%clk 0:01:15]} 31... g6 {[%clk 0:01:05.2]}
32. Bg4 {[%clk 0:01:08.8]} 32... Qxg5+ {[%clk 0:01:05.1]} 33. Rd2 {[%clk
0:01:07.4]} 33... h5 {[%clk 0:01:04]} 34. h4 {[%clk 0:00:59.5]} 34... Qe3 {[%clk
0:01:03.3]} 35. Rd1 {[%clk 0:00:44.7]} 35... hxg4 {[%clk 0:01:01.9]} 36. fxg4
{[%clk 0:00:45.3]} 36... Rfb8 {[%clk 0:01:00.1]} 37. Kb1 {[%clk 0:00:27.5]}
37... Qxe4+ {[%clk 0:00:59.2]} 38. Ka1 {[%clk 0:00:27.7]} 38... Qxg4 {[%clk
0:00:57.8]} 39. Rxd6 {[%clk 0:00:27.5]} 39... Rxb2 {[%clk 0:00:53.4]} 40. Rd8+
{[%clk 0:00:26.1]} 40... Kh7 {[%clk 0:00:53]} 41. Qf8 {[%clk 0:00:20.5]} 41...
Qxd1+ {[%clk 0:00:51.8]} 42. Rxd1 {[%clk 0:00:19.1]} 42... Rxf8 {[%clk 0:00:51]}
43. Kxb2 {[%clk 0:00:19.7]} 43... f5 {[%clk 0:00:49.9]} 44. Ka3 {[%clk
0:00:19.9]} 44... Rc8 {[%clk 0:00:49]} 45. Kb4 {[%clk 0:00:17.3]} 45... a3
{[%clk 0:00:47.9]} 46. Ra1 {[%clk 0:00:17]} 46... e4 {[%clk 0:00:47.2]} 47. Rxa3
{[%clk 0:00:17.2]} 47... Kh6 {[%clk 0:00:46.7]} 48. Ra7 {[%clk 0:00:17.8]} 48...
Kh5 {[%clk 0:00:43.3]} 49. Rh7+ {[%clk 0:00:16.7]} 49... Kg4 {[%clk 0:00:43.3]}
50. Rg7 {[%clk 0:00:17]} 50... Kxh4 {[%clk 0:00:43.2]} 51. Rxg6 {[%clk
0:00:17.3]} 51... f4 {[%clk 0:00:43.5]} 52. Re6 {[%clk 0:00:15.5]} 52... e3
{[%clk 0:00:42.7]} 53. Kb3 {[%clk 0:00:13.3]} 53... Kg3 {[%clk 0:00:42.1]} 54.
Rg6+ {[%clk 0:00:12.4]} 54... Kf2 {[%clk 0:00:42.1]} 55. Kc2 {[%clk 0:00:12.4]}
55... f3 {[%clk 0:00:41.6]} 56. Rf6 {[%clk 0:00:06.4]} 56... e2 {[%clk
0:00:41.5]} 0-1

[Event "*** Titled Tuesday Blitz"]
[Site "Chess.com"]
[Date "2020.04.07"]
[Round "5"]
[White "VladimirBelous"]
[Black "Rish_97"]
[Result "1-0"]
[WhiteElo "2762"]
[BlackElo "2572"]
[TimeControl "180+1"]
[EndTime "13:56:53 PDT"]
[Termination "VladimirBelous won by resignation"]

1. d4 {[%clk 0:02:58.8]} 1... Nf6 {[%clk 0:02:57.7]} 2. c4 {[%clk 0:02:57.7]}
2... e6 {[%clk 0:02:57.7]} 3. Nc3 {[%clk 0:02:56.6]} 3... Bb4 {[%clk 0:02:56.8]}
4. f3 {[%clk 0:02:56.7]} 4... d5 {[%clk 0:02:55.8]} 5. a3 {[%clk 0:02:56.3]}
5... Be7 {[%clk 0:02:55.7]} 6. Bg5 {[%clk 0:02:51.1]} 6... O-O {[%clk
0:02:34.2]} 7. e3 {[%clk 0:02:49.4]} 7... c5 {[%clk 0:02:32.4]} 8. dxc5 {[%clk
0:02:49.6]} 8... Bxc5 {[%clk 0:02:31.9]} 9. Bd3 {[%clk 0:02:35.6]} 9... h6
{[%clk 0:02:30]} 10. Bxf6 {[%clk 0:02:28]} 10... Qxf6 {[%clk 0:02:30.9]} 11. Qe2
{[%clk 0:02:23.7]} 11... dxc4 {[%clk 0:02:03.1]} 12. Bxc4 {[%clk 0:02:22.7]}
12... Nc6 {[%clk 0:02:03.2]} 13. Ne4 {[%clk 0:02:18.3]} 13... Qh4+ {[%clk
0:01:58.9]} 14. g3 {[%clk 0:02:11.5]} 14... Qe7 {[%clk 0:01:58.5]} 15. Nh3
{[%clk 0:02:06.3]} 15... e5 {[%clk 0:01:56.6]} 16. Nhf2 {[%clk 0:02:04.6]} 16...
Bb6 {[%clk 0:01:56.2]} 17. O-O {[%clk 0:02:04.4]} 17... Kh8 {[%clk 0:01:56.5]}
18. Rfd1 {[%clk 0:01:55.9]} 18... f5 {[%clk 0:01:55.8]} 19. Nd6 {[%clk
0:01:51.8]} 19... Bc5 {[%clk 0:01:41.8]} 20. Nxc8 {[%clk 0:01:32.8]} 20... Raxc8
{[%clk 0:01:42.5]} 21. Bd5 {[%clk 0:01:31.9]} 21... Rce8 {[%clk 0:01:29.2]} 22.
Kg2 {[%clk 0:01:31.6]} 22... Qg5 {[%clk 0:01:18.3]} 23. Bxc6 {[%clk 0:01:24.8]}
23... bxc6 {[%clk 0:01:17]} 24. Rac1 {[%clk 0:01:25.3]} 24... Qxe3 {[%clk
0:00:59.7]} 25. Qxe3 {[%clk 0:01:25.2]} 25... Bxe3 {[%clk 0:01:00.6]} 26. Rxc6
{[%clk 0:01:25.8]} 26... Rc8 {[%clk 0:01:01.1]} 27. Rdd6 {[%clk 0:01:16.2]}
27... Bc5 {[%clk 0:00:36.7]} 28. Re6 {[%clk 0:01:08.4]} 28... Bd4 {[%clk
0:00:34.9]} 29. Nd3 {[%clk 0:01:06.7]} 29... Rxc6 {[%clk 0:00:32.4]} 30. Rxc6
{[%clk 0:01:07.6]} 30... a5 {[%clk 0:00:28.6]} 31. h4 {[%clk 0:00:55.6]} 31...
Rb8 {[%clk 0:00:28.1]} 32. b4 {[%clk 0:00:47.5]} 32... axb4 {[%clk 0:00:28.1]}
33. axb4 {[%clk 0:00:48.4]} 33... h5 {[%clk 0:00:25.2]} 34. Rd6 {[%clk
0:00:41.7]} 34... Kg8 {[%clk 0:00:23.5]} 35. f4 {[%clk 0:00:38.6]} 35... e4
{[%clk 0:00:23.3]} 36. Rxd4 {[%clk 0:00:37.8]} 36... exd3 {[%clk 0:00:23.7]} 37.
Kf3 {[%clk 0:00:38.4]} 37... Kf7 {[%clk 0:00:21.3]} 38. Ke3 {[%clk 0:00:38.6]}
38... Re8+ {[%clk 0:00:21.5]} 39. Kxd3 {[%clk 0:00:38.3]} 39... Re1 {[%clk
0:00:21.6]} 40. b5 {[%clk 0:00:36.8]} 40... Rg1 {[%clk 0:00:20]} 41. Kc4 {[%clk
0:00:31.4]} 41... Rxg3 {[%clk 0:00:19.7]} 42. b6 {[%clk 0:00:32]} 42... Rg1
{[%clk 0:00:17.8]} 43. Kc5 {[%clk 0:00:30.1]} 43... Rc1+ {[%clk 0:00:12.3]} 44.
Rc4 {[%clk 0:00:29.5]} 44... Rb1 {[%clk 0:00:12.4]} 45. Rb4 {[%clk 0:00:26.8]}
45... Rc1+ {[%clk 0:00:12.8]} 46. Kd6 {[%clk 0:00:27.3]} 46... Rd1+ {[%clk
0:00:12.6]} 47. Ke5 {[%clk 0:00:27.5]} 47... Rd8 {[%clk 0:00:10.1]} 48. b7
{[%clk 0:00:28]} 48... Rb8 {[%clk 0:00:09.2]} 49. Kxf5 {[%clk 0:00:28.5]} 49...
g6+ {[%clk 0:00:09.2]} 50. Kg5 {[%clk 0:00:28.9]} 50... Kg7 {[%clk 0:00:10.1]}
51. Rb5 {[%clk 0:00:29.3]} 1-0

[Event "*** Titled Tuesday Blitz"]
[Site "Chess.com"]
[Date "2020.04.07"]
[Round "5"]
[White "manmanlai1"]
[Black "pedromartinez91"]
[Result "0-1"]
[WhiteElo "2305"]
[BlackElo "2505"]
[TimeControl "180+1"]
[EndTime "13:56:53 PDT"]
[Termination "pedromartinez91 won on time"]

1. e4 {[%clk 0:03:00.9]} 1... c5 {[%clk 0:02:57.3]} 2. Nf3 {[%clk 0:03:00.5]}
2... Nc6 {[%clk 0:02:57.2]} 3. Bb5 {[%clk 0:03:00.1]} 3... g6 {[%clk 0:02:51]}
4. Bxc6 {[%clk 0:03:00.2]} 4... bxc6 {[%clk 0:02:51.9]} 5. O-O {[%clk 0:03:00]}
5... Bg7 {[%clk 0:02:52.4]} 6. Re1 {[%clk 0:03:00.1]} 6... d6 {[%clk 0:02:52.6]}
7. c3 {[%clk 0:02:58.6]} 7... Nf6 {[%clk 0:02:44.7]} 8. d4 {[%clk 0:02:49.8]}
8... cxd4 {[%clk 0:02:44.3]} 9. cxd4 {[%clk 0:02:50.7]} 9... O-O {[%clk
0:02:44.4]} 10. h3 {[%clk 0:02:47.6]} 10... Rb8 {[%clk 0:02:36.8]} 11. Qc2
{[%clk 0:02:46.4]} 11... Bd7 {[%clk 0:02:30.7]} 12. b3 {[%clk 0:02:44.7]} 12...
Qa5 {[%clk 0:02:18.9]} 13. Bd2 {[%clk 0:02:37.7]} 13... Qh5 {[%clk 0:02:07.6]}
14. Qd3 {[%clk 0:02:20]} 14... c5 {[%clk 0:02:03.4]} 15. Nc3 {[%clk 0:01:59.3]}
15... cxd4 {[%clk 0:01:53.3]} 16. Nxd4 {[%clk 0:02:00.2]} 16... Rfe8 {[%clk
0:01:43.9]} 17. Rac1 {[%clk 0:01:57.9]} 17... Rbc8 {[%clk 0:01:30.3]} 18. f3
{[%clk 0:01:40.4]} 18... Bxh3 {[%clk 0:01:17.2]} 19. gxh3 {[%clk 0:01:38.8]}
19... Qxh3 {[%clk 0:01:18.1]} 20. Nce2 {[%clk 0:01:20.6]} 20... Nh5 {[%clk
0:01:12.5]} 21. Rxc8 {[%clk 0:01:14.4]} 21... Rxc8 {[%clk 0:01:13.4]} 22. Qe3
{[%clk 0:00:57.8]} 22... Ng3 {[%clk 0:00:54.7]} 23. Nxg3 {[%clk 0:00:29.5]}
23... Qxg3+ {[%clk 0:00:55.6]} 24. Kf1 {[%clk 0:00:29.2]} 24... Bxd4 {[%clk
0:00:44.7]} 25. Qxd4 {[%clk 0:00:29]} 25... Qxf3+ {[%clk 0:00:44.8]} 26. Qf2
{[%clk 0:00:29.3]} 26... Qd3+ {[%clk 0:00:44.5]} 27. Qe2 {[%clk 0:00:28.1]}
27... Qh3+ {[%clk 0:00:44.6]} 28. Qg2 {[%clk 0:00:26.5]} 28... Qd3+ {[%clk
0:00:43.8]} 29. Qe2 {[%clk 0:00:26.1]} 29... Qg3 {[%clk 0:00:36.8]} 30. Rc1
{[%clk 0:00:20.5]} 30... Qh3+ {[%clk 0:00:24.8]} 31. Qg2 {[%clk 0:00:17.3]}
31... Qd3+ {[%clk 0:00:21.9]} 32. Qe2 {[%clk 0:00:17]} 32... Rxc1+ {[%clk
0:00:21.8]} 33. Bxc1 {[%clk 0:00:16.9]} 33... Qb1 {[%clk 0:00:22.7]} 34. Qd2
{[%clk 0:00:10.8]} 34... Qxe4 {[%clk 0:00:21]} 35. a4 {[%clk 0:00:08.9]} 35...
Qf3+ {[%clk 0:00:20]} 36. Qf2 {[%clk 0:00:08.9]} 36... Qxb3 {[%clk 0:00:20.1]}
37. Qe3 {[%clk 0:00:06.2]} 37... Qxa4 {[%clk 0:00:17.2]} 38. Bd2 {[%clk
0:00:06.7]} 38... Qc4+ {[%clk 0:00:15.9]} 39. Kf2 {[%clk 0:00:05.8]} 39... Qg4
{[%clk 0:00:16.1]} 40. Qxa7 {[%clk 0:00:04.8]} 40... Qf5+ {[%clk 0:00:13.6]} 41.
Ke2 {[%clk 0:00:04.3]} 41... Qe5+ {[%clk 0:00:13.3]} 42. Kf2 {[%clk 0:00:04.8]}
42... Kg7 {[%clk 0:00:12.2]} 43. Kf1 {[%clk 0:00:03.7]} 43... g5 {[%clk
0:00:11.5]} 44. Qa4 {[%clk 0:00:02.6]} 44... f6 {[%clk 0:00:11.3]} 45. Qa3
{[%clk 0:00:02.1]} 45... h5 {[%clk 0:00:10.7]} 46. Qb3 {[%clk 0:00:02.4]} 46...
Qf5+ {[%clk 0:00:10.9]} 47. Ke1 {[%clk 0:00:02]} 47... h4 {[%clk 0:00:11.3]} 48.
Bc3 {[%clk 0:00:01.6]} 48... Qe4+ {[%clk 0:00:11.2]} 49. Kd2 {[%clk 0:00:01.3]}
49... h3 {[%clk 0:00:11.4]} 0-1

[Event "*** Titled Tuesday Blitz"]
[Site "Chess.com"]
[Date "2020.04.07"]
[Round "5"]
[White "EnergeticHay"]
[Black "poummba"]
[Result "0-1"]
[WhiteElo "2192"]
[BlackElo "2488"]
[TimeControl "180+1"]
[EndTime "13:56:53 PDT"]
[Termination "poummba won by resignation"]

1. e4 {[%clk 0:03:00.3]} 1... c6 {[%clk 0:02:59.4]} 2. Nf3 {[%clk 0:03:00.1]}
2... d5 {[%clk 0:03:00.3]} 3. Nc3 {[%clk 0:02:59.6]} 3... Nf6 {[%clk 0:03:00]}
4. exd5 {[%clk 0:02:55.9]} 4... cxd5 {[%clk 0:02:59.6]} 5. d4 {[%clk 0:02:55.4]}
5... Nc6 {[%clk 0:02:58.5]} 6. h3 {[%clk 0:02:55.3]} 6... g6 {[%clk 0:02:55.6]}
7. Be2 {[%clk 0:02:51.7]} 7... Bg7 {[%clk 0:02:55.9]} 8. O-O {[%clk 0:02:52.2]}
8... O-O {[%clk 0:02:56.7]} 9. Bf4 {[%clk 0:02:51.9]} 9... Ne4 {[%clk
0:02:53.6]} 10. Ne5 {[%clk 0:02:48]} 10... Nxc3 {[%clk 0:02:52.2]} 11. bxc3
{[%clk 0:02:48.9]} 11... Qa5 {[%clk 0:02:44.9]} 12. Nxc6 {[%clk 0:02:42.6]}
12... bxc6 {[%clk 0:02:44.7]} 13. Qd2 {[%clk 0:02:41.3]} 13... Ba6 {[%clk
0:02:39.3]} 14. Rfe1 {[%clk 0:02:28.7]} 14... Bxe2 {[%clk 0:02:34.7]} 15. Rxe2
{[%clk 0:02:29.6]} 15... Rfe8 {[%clk 0:02:35]} 16. Rae1 {[%clk 0:02:28.8]} 16...
e6 {[%clk 0:02:23.4]} 17. Be5 {[%clk 0:02:12.7]} 17... Qxa2 {[%clk 0:02:18.1]}
18. Bxg7 {[%clk 0:02:11.3]} 18... Kxg7 {[%clk 0:02:19]} 19. h4 {[%clk
0:02:09.3]} 19... h5 {[%clk 0:02:16]} 20. g4 {[%clk 0:02:06.2]} 20... hxg4
{[%clk 0:02:13.8]} 21. h5 {[%clk 0:02:05.3]} 21... Qa3 {[%clk 0:01:52]} 22. Qg5
{[%clk 0:01:53.5]} 22... Qe7 {[%clk 0:01:03.1]} 23. Qxg4 {[%clk 0:01:45.2]}
23... g5 {[%clk 0:01:02.8]} 24. f4 {[%clk 0:01:35.2]} 24... Kh6 {[%clk 0:01:00]}
25. Re5 {[%clk 0:01:28.3]} 25... gxf4 {[%clk 0:00:48.9]} 26. Qxf4+ {[%clk
0:01:26.8]} 26... Kh7 {[%clk 0:00:49]} 27. Kh2 {[%clk 0:01:13.3]} 27... Rg8
{[%clk 0:00:47.2]} 28. Rf1 {[%clk 0:01:08.7]} 28... Raf8 {[%clk 0:00:38.2]} 29.
Qf3 {[%clk 0:01:03.7]} 29... Qh4+ {[%clk 0:00:33.8]} 30. Qh3 {[%clk 0:01:04.1]}
30... Qxh3+ {[%clk 0:00:30.1]} 31. Kxh3 {[%clk 0:01:05]} 31... a5 {[%clk
0:00:04]} 32. Ree1 {[%clk 0:00:50.3]} 32... Kh6 {[%clk 0:00:02.3]} 33. Ra1
{[%clk 0:00:49.4]} 33... Rg5 {[%clk 0:00:02.1]} 34. Rxa5 {[%clk 0:00:42.8]}
34... f5 {[%clk 0:00:01.5]} 35. Rf4 {[%clk 0:00:32.5]} 35... Rfg8 {[%clk
0:00:01.5]} 36. Ra6 {[%clk 0:00:31.5]} 36... Rg3+ {[%clk 0:00:02]} 37. Kh2
{[%clk 0:00:30.1]} 37... Rg2+ {[%clk 0:00:02.4]} 38. Kh1 {[%clk 0:00:28.5]}
38... Rg1+ {[%clk 0:00:02.7]} 39. Kh2 {[%clk 0:00:28.1]} 39... R8g2+ {[%clk
0:00:03.6]} 40. Kh3 {[%clk 0:00:28.3]} 40... Rg3+ {[%clk 0:00:03.8]} 41. Kh2
{[%clk 0:00:27.6]} 41... Rxc3 {[%clk 0:00:04.7]} 42. Rf2 {[%clk 0:00:25]} 42...
Rc1 {[%clk 0:00:04.2]} 43. Ra2 {[%clk 0:00:23.9]} 43... Kxh5 {[%clk 0:00:03.1]}
44. Re2 {[%clk 0:00:23.8]} 44... Kg5 {[%clk 0:00:03.2]} 45. Rxe6 {[%clk
0:00:23.9]} 45... R1xc2+ {[%clk 0:00:03.6]} 46. Rxc2 {[%clk 0:00:24.3]} 46...
Rxc2+ {[%clk 0:00:04.5]} 47. Kg3 {[%clk 0:00:24.7]} 47... Rc4 {[%clk 0:00:05.1]}
48. Kf3 {[%clk 0:00:23.7]} 48... Rxd4 {[%clk 0:00:04.9]} 49. Rxc6 {[%clk
0:00:24.2]} 49... Rd1 {[%clk 0:00:04.5]} 50. Rc5 {[%clk 0:00:21.8]} 50... d4
{[%clk 0:00:04.1]} 51. Rd5 {[%clk 0:00:22.4]} 51... d3 {[%clk 0:00:04.3]} 52.
Ke3 {[%clk 0:00:22.7]} 52... Kg4 {[%clk 0:00:03.6]} 53. Rd4+ {[%clk 0:00:22.4]}
53... Kg3 {[%clk 0:00:03.4]} 54. Rb4 {[%clk 0:00:14.8]} 54... f4+ {[%clk
0:00:02.2]} 55. Rxf4 {[%clk 0:00:14]} 55... Re1+ {[%clk 0:00:02.5]} 56. Kxd3
{[%clk 0:00:14.4]} 0-1